fUSD/lending_fUSD_20240814
["ID","MTS","AMOUNT","RATE_DAILY","PERIOD"]
[334954657,1723671060231,-1074.68,0.00015066,2]
[334954658,1723671060241,-500.0,0.00015066,2]
[334954659,1723671060252,-500.0,0.00015066,2]
[334954660,1723671060262,-1128.61,0.00015066,2]
[334954661,1723671060272,-500.0,0.00015066,2]
[334954662,1723671060282,-500.0,0.00015066,2]
[334954663,1723671060291,-500.0,0.00015066,2]
[334954664,1723671060301,-192.855721,0.00015066,2]
[334954665,1723671060311,-192.855724,0.00015066,2]
[334954666,1723671060321,-500.0,0.00015066,2]
[334954667,1723671060330,-507.16,0.00015066,2]
[334954668,1723671060340,-500.0,0.00015066,2]
[334954669,1723671060350,-586.485005,0.00015066,2]
[334954670,1723671060360,-500.0,0.00015066,2]
[334954671,1723671060369,-196.877797,0.00015066,2]
[334954672,1723671060379,-586.485011,0.00015066,2]
[334954673,1723671060389,-196.877794,0.00015066,2]
[334954674,1723671060399,-1653.213627,0.00015066,2]
[334954675,1723671060409,-1653.213619,0.00015066,2]
[334954676,1723671060419,-151.0,0.00015066,2]
[334954677,1723671060428,-257.362315,0.00015066,2]
[334954678,1723671060438,-257.36232,0.00015066,2]
[334954679,1723671060449,-500.0,0.00015066,2]
[334954680,1723671060459,-2426.382911,0.00015066,2]
[334954681,1723671060469,-2426.382909,0.00015066,2]
[334954682,1723671060479,-500.0,0.00015066,2]
[334954683,1723671060489,-300.0,0.00015066,2]
[334954684,1723671060499,-500.0,0.00015067,2]
[334954685,1723671060509,-500.0,0.00015067,2]
[334954686,1723671060519,-500.0,0.00015067,2]
[334954687,1723671060529,-500.0,0.00015067,2]
[334954688,1723671060538,-319.181767,0.00015067,2]
[334954689,1723671060548,-319.181767,0.00015067,2]
[334954690,1723671060558,-199.933526,0.00015067,2]
[334954691,1723671060568,-500.0,0.00015067,2]
[334954692,1723671060579,-199.933526,0.00015067,2]
[334954693,1723671060589,-500.0,0.00015067,2]
[334954694,1723671060598,-500.0,0.00015067,2]
[334954695,1723671060607,-500.0,0.00015067,2]
[334954696,1723671060617,-207.775921,0.00015067,2]
[334954697,1723671060628,-207.775921,0.00015067,2]
[334954698,1723671060637,-500.0,0.00015067,2]
[334954699,1723671060647,-151.0,0.00015067,2]
[334954700,1723671060657,-949.98397,0.00015067,2]
[334954701,1723671060667,-949.98397,0.00015067,2]
[334954702,1723671060677,-1704.69613,0.00015067,2]
[334954703,1723671060687,-1704.69613,0.00015067,2]
[334954704,1723671060697,-151.0,0.00015067,2]
[334954705,1723671060707,-166.213522,0.00015067,2]
[334954706,1723671060717,-500.0,0.00015067,2]
[334954707,1723671060726,-500.0,0.00015067,2]
[334954708,1723671060736,-275.793089,0.00015067,2]
[334954709,1723671060746,-500.0,0.00015067,2]
[334954710,1723671060756,-500.0,0.00015067,2]
[334954711,1723671060766,-1091.246547,0.00015067,2]
[334954712,1723671060775,-275.793089,0.00015067,2]
[334954713,1723671060786,-1091.246547,0.00015067,2]
[334954714,1723671060795,-500.0,0.00015067,2]
[334954715,1723671060805,-500.0,0.00015067,2]
[334954716,1723671060815,-500.0,0.00015067,2]
[334954717,1723671060825,-427.976466,0.00015067,2]
[334954718,1723671060838,-156.934275,0.00015067,2]
[334954719,1723671060848,-427.976466,0.00015067,2]
[334954720,1723671060857,-156.934275,0.00015067,2]
[334954721,1723671060867,-500.0,0.00015067,2]
[334954722,1723671060878,-500.0,0.00015067,2]
[334954723,1723671060887,-500.0,0.00015067,2]
[334954724,1723671060897,-500.0,0.00015067,2]
[334954725,1723671060908,-500.0,0.00015067,2]
[334954726,1723671060918,-500.0,0.00015067,2]
[334954727,1723671060927,-500.0,0.00015067,2]
[334954728,1723671060937,-500.0,0.00015067,2]
[334954729,1723671060947,-500.0,0.00015067,2]
[334954730,1723671060958,-2189.59777,0.00015067,2]
[334954731,1723671060968,-2189.59777,0.00015067,2]
[334954732,1723671060978,-500.0,0.00015067,2]
[334954733,1723671060987,-500.0,0.00015067,2]
[334954734,1723671060997,-696.69,0.00015067,2]
[334954735,1723671061007,-500.0,0.00015067,2]
[334954736,1723671061016,-500.0,0.00015067,2]
[334954737,1723671061026,-500.0,0.00015067,2]
[334954738,1723671061036,-979.79,0.00015067,2]
[334954739,1723671061045,-300.879041,0.00015067,2]
[334954740,1723671061055,-300.879041,0.00015067,2]
[334954741,1723671061065,-500.0,0.00015067,2]
[334954742,1723671061075,-500.0,0.00015067,2]
[334954743,1723671061084,-500.0,0.00015067,2]
[334954744,1723671061094,-500.0,0.00015067,2]
[334954745,1723671061103,-500.0,0.00015067,2]
[334954746,1723671061196,-500.0,0.00015067,2]
[334954747,1723671061207,-500.0,0.00015067,2]
[334954748,1723671061217,-1000.0,0.00015067,2]
[334954749,1723671061227,-500.0,0.00015067,2]
[334954750,1723671061237,-500.0,0.00015067,2]
[334954751,1723671061247,-2393.569949,0.00015067,2]
[334954752,1723671061257,-329.4205635,0.00015067,2]
[334954753,1723671061267,-2393.569949,0.00015067,2]
[334954754,1723671061276,-500.0,0.00015067,2]
[334954755,1723671061286,-500.0,0.00015067,2]
[334954756,1723671061295,-500.0,0.00015067,2]
[334954757,1723671061305,-500.0,0.00015067,2]
[334954758,1723671061315,-500.0,0.00015067,2]
[334954759,1723671061324,-639.81,0.00015067,2]
[334954760,1723671061334,-500.0,0.00015067,2]
[334954761,1723671061345,-151.0,0.00015067,2]
[334954762,1723671061355,-229.04171963,0.00015067,2]
[334954763,1723671061365,-329.32807984,0.00015067,2]
[334954764,1723671061375,-500.0,0.00015067,2]
[334954765,1723671061385,-370.301914,0.00015067,2]
[334954766,1723671061395,-500.0,0.00015067,2]
[334954767,1723671061405,-370.301914,0.00015067,2]
[334954768,1723671061415,-500.0,0.00015067,2]
[334954769,1723671061425,-500.0,0.00015067,2]
[334954770,1723671061435,-500.0,0.00015067,2]
[334954771,1723671061445,-151.0,0.00015067,2]
[334954772,1723671061454,-463.702414,0.00015067,2]
[334954773,1723671061465,-500.0,0.00015067,2]
[334954774,1723671061474,-463.702414,0.00015067,2]
[334954775,1723671061484,-500.0,0.00015067,2]
[334954776,1723671061494,-500.0,0.00015067,2]
[334954777,1723671061504,-673.87,0.00015067,2]
[334954778,1723671061513,-500.0,0.00015067,2]
[334954779,1723671061523,-283.669863,0.00015067,2]
[334954780,1723671061533,-1191.97,0.00015067,2]
[334954781,1723671061542,-283.669863,0.00015067,2]
[334954782,1723671061553,-500.0,0.00015067,2]
[334954783,1723671061563,-500.0,0.00015067,2]
[334954784,1723671061572,-1276.494415,0.00015067,2]
[334954785,1723671061582,-1276.494415,0.00015067,2]
[334954786,1723671061592,-500.0,0.00015067,2]
[334954787,1723671061602,-500.0,0.00015067,2]
[334954788,1723671061612,-500.0,0.00015067,2]
[334954789,1723671061622,-716.22,0.00015067,2]
[334954790,1723671061631,-500.0,0.00015067,2]
[334954791,1723671061641,-500.0,0.00015067,2]
[334954792,1723671061652,-500.0,0.00015067,2]
[334954793,1723671061662,-1083.34,0.00015067,2]
[334954794,1723671061672,-500.0,0.00015067,2]
[334954795,1723671061682,-151.0,0.00015067,2]
[334954796,1723671061692,-500.0,0.00015067,2]
[334954797,1723671061702,-176.822504,0.00015067,2]
[334954798,1723671061712,-500.0,0.00015067,2]
[334954799,1723671061722,-500.0,0.00015067,2]
[334954800,1723671061732,-1034.841714,0.00015067,2]
[334954801,1723671061742,-500.0,0.00015067,2]
[334954802,1723671061753,-500.0,0.00015067,2]
[334954803,1723671061763,-1034.841714,0.00015067,2]
[334954804,1723671061773,-867.92,0.00015067,2]
[334954805,1723671061783,-166.486331,0.00015067,2]
[334954806,1723671061793,-500.0,0.00015067,2]
[334954807,1723671061803,-151.0,0.00015067,2]
[334954808,1723671061813,-166.486331,0.00015067,2]
[334954809,1723671061822,-598.09,0.00015067,2]
[334954810,1723671061835,-500.0,0.00015067,2]
[334954811,1723671061845,-500.0,0.00015067,2]
[334954812,1723671061855,-500.0,0.00015067,2]
[334954813,1723671061866,-500.0,0.00015067,2]
[334954814,1723671061877,-500.0,0.00015067,2]
[334954815,1723671061886,-500.0,0.00015067,2]
[334954816,1723671061897,-500.0,0.00015067,2]
[334954817,1723671061909,-500.0,0.00015067,2]
[334954818,1723671061919,-500.0,0.00015067,2]
[334954819,1723671061930,-500.0,0.00015067,2]
[334954820,1723671061939,-500.0,0.00015067,2]
[334954821,1723671061950,-500.0,0.00015067,2]
[334954822,1723671061960,-500.0,0.00015067,2]
[334954823,1723671061970,-837.07,0.00015067,2]
[334954824,1723671061980,-526.04,0.00015067,2]
[334954825,1723671061990,-500.0,0.00015067,2]
[334954826,1723671061999,-500.0,0.00015067,2]
[334954827,1723671062009,-500.0,0.00015067,2]
[334954828,1723671062019,-500.0,0.00015067,2]
[334954829,1723671062028,-500.0,0.00015067,2]
[334954830,1723671062038,-500.0,0.00015067,2]
[334954831,1723671062047,-500.0,0.00015067,2]
[334954832,1723671062057,-500.0,0.00015067,2]
[334954833,1723671062066,-500.0,0.00015067,2]
[334954834,1723671062075,-500.0,0.00015067,2]
[334954835,1723671062084,-500.0,0.00015067,2]
[334954836,1723671062094,-300.0,0.00015067,2]
[334954837,1723671062103,-151.0,0.00015068,2]
[334954838,1723671062113,-151.0,0.00015068,2]
[334954839,1723671062122,-151.0,0.00015068,2]
[334954840,1723671062132,-151.0,0.00015068,2]
[334954841,1723671062142,-151.0,0.00015068,2]
[334954842,1723671062151,-214.097175,0.00015068,2]
[334954843,1723671062160,-151.0,0.00015068,2]
[334954844,1723671062170,-214.097175,0.00015068,2]
[334954845,1723671062179,-151.0,0.00015068,2]
[334954846,1723671062188,-244.890391,0.00015068,2]
[334954847,1723671062198,-151.0,0.00015068,2]
[334954848,1723671062209,-209.026705,0.00015068,2]
[334954849,1723671062219,-151.0,0.00015068,2]
[334954850,1723671062229,-209.026705,0.00015068,2]
[334954851,1723671062238,-151.0,0.00015068,2]
[334954852,1723671062248,-151.0,0.00015068,2]
[334954853,1723671062257,-163.712186,0.00015068,2]
[334954854,1723671062267,-151.0,0.00015068,2]
[334954855,1723671062277,-163.712186,0.00015068,2]
[334954856,1723671062287,-1072.180846,0.00015068,2]
[334954857,1723671062297,-1072.180846,0.00015068,2]
[334954858,1723671062307,-256.132215,0.00015068,2]
[334954859,1723671062318,-151.0,0.00015068,2]
[334954860,1723671062329,-301.796473,0.00015068,2]
[334954861,1723671062340,-499.626765,0.00015068,2]
[334954862,1723671062351,-301.796473,0.00015068,2]
[334954863,1723671062364,-499.626765,0.00015068,2]
[334954864,1723671062376,-500.0,0.00015068,2]
[334954865,1723671062386,-500.0,0.00015068,2]
[334954866,1723671062397,-500.0,0.00015068,2]
[334954867,1723671062407,-1953.876887,0.00015068,2]
[334954868,1723671062419,-182.328166,0.00015068,2]
[334954869,1723671062427,-1953.876887,0.00015068,2]
[334954870,1723671062437,-182.328166,0.00015068,2]
[334954871,1723671062447,-151.0,0.00015068,2]
[334954872,1723671062458,-151.0,0.00015068,2]
[334954873,1723671062470,-500.0,0.00015068,2]
[334954874,1723671062480,-828.6,0.00015068,2]
[334954875,1723671062491,-500.0,0.00015068,2]
[334954876,1723671062500,-500.0,0.00015068,2]
[334954877,1723671062510,-578.01,0.00015068,2]
[334954878,1723671062520,-151.0,0.00015068,2]
[334954879,1723671062603,-500.0,0.00015068,2]
[334954880,1723671062620,-500.0,0.00015068,2]
[334954881,1723671062630,-328.071574,0.00015068,2]
[334954882,1723671062639,-328.071574,0.00015068,2]
[334954883,1723671062648,-197.43,0.00015068,2]
[334954884,1723671062658,-500.0,0.00015068,2]
[334954885,1723671062667,-315.96,0.00015068,2]
[334954886,1723671062676,-500.0,0.00015068,2]
[334954887,1723671062686,-613.26914768,0.00015068,2]
[334954888,1723671062696,-151.0,0.00015068,2]
[334954889,1723671062705,-500.0,0.00015068,2]
[334954890,1723671062718,-500.0,0.00015068,2]
[334954891,1723671062731,-212.28109,0.00015068,2]
[334954892,1723671062745,-212.28109,0.00015068,2]
[334954893,1723671062754,-267.021086,0.00015068,2]
[334954894,1723671062763,-267.021086,0.00015068,2]
[334954895,1723671062772,-500.0,0.00015068,2]
[334954896,1723671062782,-500.0,0.00015068,2]
[334954897,1723671062792,-454.889454,0.00015068,2]
[334954898,1723671062803,-919.322496,0.00015068,2]
[334954899,1723671062813,-454.889454,0.00015068,2]
[334954900,1723671062822,-543.0,0.00015068,2]
[334954901,1723671062837,-919.322496,0.00015068,2]
[334954902,1723671062847,-500.0,0.00015068,2]
[334954903,1723671062857,-201.582572,0.00015068,2]
[334954904,1723671062866,-201.582572,0.00015068,2]
[334954905,1723671062877,-10000.0,0.00015068,2]
[334954906,1723671062886,-357.539196,0.00015068,2]
[334954907,1723671062895,-10000.0,0.00015068,2]
[334954908,1723671062906,-357.539196,0.00015068,2]
[334954909,1723671062918,-500.0,0.00015068,2]
[334954910,1723671062928,-516.82,0.00015068,2]
[334954911,1723671062939,-500.0,0.00015068,2]
[334954912,1723671062949,-500.0,0.00015068,2]
[334954913,1723671062958,-1439.5,0.00015068,2]
[334954914,1723671062969,-296.765324,0.00015068,2]
[334954915,1723671062978,-296.765324,0.00015068,2]
[334954916,1723671062989,-500.0,0.00015068,2]
[334954917,1723671062999,-425.920658,0.00015068,2]
[334954918,1723671063008,-425.920658,0.00015068,2]
[334954919,1723671063018,-500.0,0.00015068,2]
[334954920,1723671063027,-1362.441765,0.00015068,2]
[334954921,1723671063036,-1362.441767,0.00015068,2]
[334954922,1723671063045,-500.0,0.00015068,2]
[334954923,1723671063055,-500.0,0.00015068,2]
[334954924,1723671063064,-500.0,0.00015068,2]
[334954925,1723671063073,-268.600172,0.00015068,2]
[334954926,1723671063083,-268.600168,0.00015068,2]
[334954927,1723671063093,-151.0,0.00015068,2]
[334954928,1723671063102,-500.0,0.00015068,2]
[334954929,1723671063112,-500.923607,0.00015068,2]
[334954930,1723671063122,-500.0,0.00015068,2]
[334954931,1723671063131,-500.923612,0.00015068,2]
[334954932,1723671063140,-1349.32,0.00015068,2]
[334954933,1723671063150,-166.486331,0.00015068,2]
[334954934,1723671063160,-151.0,0.00015068,2]
[334954935,1723671063169,-500.0,0.00015068,2]
[334954936,1723671063179,-500.0,0.00015068,2]
[334954937,1723671063188,-166.486331,0.00015068,2]
[334954938,1723671063198,-500.0,0.00015068,2]
[334954939,1723671063207,-368.15989397,0.00015068,2]
[334954940,1723671063221,-500.0,0.00015068,2]
[334954941,1723671063240,-879.23,0.00015068,2]
[334954942,1723671063255,-500.0,0.00015068,2]
[334954943,1723671063273,-500.0,0.00015068,2]
[334954944,1723671063292,-500.0,0.00015068,2]
[334954945,1723671063308,-500.0,0.00015068,2]
[334954946,1723671063325,-500.0,0.00015068,2]
[334954947,1723671063341,-500.0,0.00015068,2]
[334954948,1723671063354,-500.0,0.00015068,2]
[334954949,1723671063373,-500.0,0.00015068,2]
[334954950,1723671063393,-1445.27,0.00015068,2]
[334954951,1723671063406,-500.0,0.00015068,2]
[334954952,1723671063420,-300.943639,0.00015068,2]
[334954953,1723671063437,-300.943647,0.00015068,2]
[334954954,1723671063452,-500.0,0.00015068,2]
[334954955,1723671063469,-500.0,0.00015068,2]
[334954956,1723671063482,-500.0,0.00015068,2]
[334954957,1723671063495,-500.0,0.00015068,2]
[334954958,1723671063510,-1238.655571,0.00015068,2]
[334954959,1723671063524,-1238.655571,0.00015068,2]
[334954960,1723671063539,-1747.42,0.00015068,2]
[334954961,1723671063554,-300.0,0.00015068,2]
[334954962,1723671063570,-194.66,0.00015105,2]
[334954963,1723671063593,-174.35,0.0001514,2]
[334954964,1723671063613,-400.0,0.00015142,2]
[334954965,1723671063628,-400.0,0.00015142,2]
[334954966,1723671063642,-400.0,0.00015142,2]
[334954967,1723671063656,-500.0,0.00015195,2]
[334954968,1723671063671,-7900.8067279,0.00015317,2]
[334954969,1723671063685,-250.0,0.00015321,2]
[334954970,1723671063699,-463.702414,0.0001534,2]
[334954971,1723671063714,-463.702407,0.0001534,2]
[334954972,1723671063728,-500.0,0.0001534,2]
[334954973,1723671063742,-307.40954577,0.0001534,2]
[334954974,1723671063757,-2033.88,0.0001534,2]
[334954975,1723671063771,-1276.494415,0.0001534,2]
[334954976,1723671063786,-1276.494424,0.0001534,2]
[334954977,1723671063800,-1074.68,0.0001534,2]
[334954978,1723671063814,-500.0,0.0001534,2]
[334954979,1723671063830,-500.0,0.0001534,2]
[334954980,1723671063846,-500.0,0.0001534,2]
[334954981,1723671063860,-1034.841714,0.0001534,2]
[334954982,1723671063875,-1034.841708,0.0001534,2]
[334954983,1723671063890,-1128.61,0.0001534,2]
[334954984,1723671063906,-500.0,0.0001534,2]
[334954985,1723671063922,-500.0,0.0001534,2]
[334954986,1723671063937,-500.0,0.0001534,2]
[334954987,1723671063952,-500.0,0.0001534,2]
[334954988,1723671063967,-507.16,0.0001534,2]
[334954989,1723671063980,-500.0,0.0001534,2]
[334954990,1723671063995,-500.0,0.0001534,2]
[334954991,1723671064011,-500.0,0.0001534,2]
[334954992,1723671064025,-500.0,0.0001534,2]
[334954993,1723671064040,-500.0,0.00015341,2]
[334954994,1723671064055,-500.0,0.00015341,2]
[334954995,1723671064070,-500.0,0.00015341,2]
[334954996,1723671064085,-505.54,0.00015341,2]
[334954997,1723671064100,-500.0,0.00015341,2]
[334954998,1723671064115,-500.0,0.00015341,2]
[334954999,1723671064131,-500.0,0.00015341,2]
[334955000,1723671064147,-500.0,0.00015341,2]
[334955001,1723671064162,-500.0,0.00015341,2]
[334955002,1723671064295,-500.0,0.00015341,2]
[334955003,1723671064305,-500.0,0.00015341,2]
[334955004,1723671064315,-500.0,0.00015341,2]
[334955005,1723671064324,-455.04292466,0.00015341,2]
[334955006,1723671064334,-500.0,0.00015341,2]
[334955007,1723671064344,-500.0,0.00015341,2]
[334955008,1723671064353,-500.0,0.00015341,2]
[334955009,1723671064362,-500.0,0.00015341,2]
[334955010,1723671064372,-500.0,0.00015341,2]
[334955011,1723671064381,-500.0,0.00015341,2]
[334955012,1723671064391,-500.0,0.00015341,2]
[334955013,1723671064401,-500.0,0.00015341,2]
[334955014,1723671064410,-500.0,0.00015341,2]
[334955015,1723671064419,-500.0,0.00015341,2]
[334955016,1723671064429,-500.0,0.00015341,2]
[334955017,1723671064438,-500.0,0.00015341,2]
[334955018,1723671064447,-500.0,0.00015341,2]
[334955019,1723671064457,-500.0,0.00015341,2]
[334955020,1723671064466,-696.69,0.00015341,2]
[334955021,1723671064475,-500.0,0.00015341,2]
[334955022,1723671064485,-502.99666279,0.00015341,2]
[334955023,1723671064494,-500.0,0.00015341,2]
[334955024,1723671064503,-979.79,0.00015341,2]
[334955025,1723671064513,-592.48,0.00015341,2]
[334955026,1723671064522,-500.0,0.00015341,2]
[334955027,1723671064532,-500.0,0.00015341,2]
[334955028,1723671064541,-500.0,0.00015341,2]
[334955029,1723671064550,-500.0,0.00015341,2]
[334955030,1723671064559,-500.0,0.00015341,2]
[334955031,1723671064569,-500.0,0.00015341,2]
[334955032,1723671064578,-1000.0,0.00015341,2]
[334955033,1723671064587,-500.0,0.00015341,2]
[334955034,1723671064597,-500.0,0.00015341,2]
[334955035,1723671064606,-2393.569949,0.00015341,2]
[334955036,1723671064615,-2393.56994,0.00015341,2]
[334955037,1723671064624,-500.0,0.00015341,2]
[334955038,1723671064633,-500.0,0.00015341,2]
[334955039,1723671064643,-500.0,0.00015341,2]
[334955040,1723671064652,-536.79586853,0.00015341,2]
[334955041,1723671064661,-500.0,0.00015341,2]
[334955042,1723671064671,-639.81,0.00015341,2]
[334955043,1723671064680,-500.0,0.00015341,2]
[334955044,1723671064690,-151.0,0.00015341,2]
[334955045,1723671064699,-500.0,0.00015341,2]
[334955046,1723671064708,-370.301914,0.00015341,2]
[334955047,1723671064717,-500.0,0.00015341,2]
[334955048,1723671064726,-370.301921,0.00015341,2]
[334955049,1723671064735,-500.0,0.00015341,2]
[334955050,1723671064745,-500.0,0.00015341,2]
[334955051,1723671064754,-500.0,0.00015341,2]
[334955052,1723671064763,-500.0,0.00015341,2]
[334955053,1723671064772,-500.0,0.00015341,2]
[334955054,1723671064781,-500.0,0.00015341,2]
[334955055,1723671064790,-673.87,0.00015341,2]
[334955056,1723671064799,-500.0,0.00015341,2]
[334955057,1723671064809,-1191.97,0.00015341,2]
[334955058,1723671064818,-500.0,0.00015341,2]
[334955059,1723671064827,-500.0,0.00015341,2]
[334955060,1723671064840,-500.0,0.00015341,2]
[334955061,1723671064849,-500.0,0.00015341,2]
[334955062,1723671064858,-500.0,0.00015341,2]
[334955063,1723671064868,-716.22,0.00015341,2]
[334955064,1723671064878,-265.05552545,0.00015341,2]
[334955065,1723671064887,-500.0,0.00015341,2]
[334955066,1723671064896,-500.0,0.00015341,2]
[334955067,1723671064906,-1083.34,0.00015341,2]
[334955068,1723671064916,-500.0,0.00015341,2]
[334955069,1723671064925,-500.0,0.00015341,2]
[334955070,1723671064935,-500.0,0.00015341,2]
[334955071,1723671064944,-500.0,0.00015341,2]
[334955072,1723671064954,-500.0,0.00015341,2]
[334955073,1723671064964,-500.0,0.00015341,2]
[334955074,1723671064973,-867.92,0.00015341,2]
[334955075,1723671064983,-500.0,0.00015341,2]
[334955076,1723671064992,-598.09,0.00015341,2]
[334955077,1723671065001,-500.0,0.00015341,2]
[334955078,1723671065010,-500.0,0.00015341,2]
[334955079,1723671065019,-500.0,0.00015341,2]
[334955080,1723671065029,-500.0,0.00015341,2]
[334955081,1723671065038,-500.0,0.00015341,2]
[334955082,1723671065047,-500.0,0.00015341,2]
[334955083,1723671065056,-500.0,0.00015341,2]
[334955084,1723671065065,-500.0,0.00015341,2]
[334955085,1723671065075,-500.0,0.00015341,2]
[334955086,1723671065084,-500.0,0.00015341,2]
[334955087,1723671065093,-500.0,0.00015341,2]
[334955088,1723671065102,-500.0,0.00015341,2]
[334955089,1723671065111,-500.0,0.00015341,2]
[334955090,1723671065121,-837.07,0.00015341,2]
[334955091,1723671065130,-526.04,0.00015341,2]
[334955092,1723671065139,-500.0,0.00015341,2]
[334955093,1723671065149,-500.0,0.00015341,2]
[334955094,1723671065159,-500.0,0.00015341,2]
[334955095,1723671065168,-500.0,0.00015341,2]
[334955096,1723671065177,-500.0,0.00015341,2]
[334955097,1723671065187,-487.1,0.00015341,2]
[334955098,1723671065196,-500.0,0.00015341,2]
[334955099,1723671065205,-500.0,0.00015341,2]
[334955100,1723671065215,-500.0,0.00015341,2]
[334955101,1723671065224,-500.0,0.00015341,2]
[334955102,1723671065233,-640.13,0.00015341,2]
[334955103,1723671065242,-275.344649,0.00015342,2]
[334955104,1723671065251,-151.0,0.00015342,2]
[334955105,1723671065262,-151.0,0.00015342,2]
[334955106,1723671065271,-151.0,0.00015342,2]
[334955107,1723671065280,-151.0,0.00015342,2]
[334955108,1723671065289,-151.0,0.00015342,2]
[334955109,1723671065298,-214.097175,0.00015342,2]
[334955110,1723671065307,-151.0,0.00015342,2]
[334955111,1723671065317,-214.097175,0.00015342,2]
[334955112,1723671065326,-151.0,0.00015342,2]
[334955113,1723671065335,-151.0,0.00015342,2]
[334955114,1723671065346,-209.026705,0.00015342,2]
[334955115,1723671065356,-274.515523,0.00015342,2]
[334955116,1723671065365,-209.026705,0.00015342,2]
[334955117,1723671065374,-151.0,0.00015342,2]
[334955118,1723671065383,-151.0,0.00015342,2]
[334955119,1723671065392,-163.712186,0.00015342,2]
[334955120,1723671065402,-163.712186,0.00015342,2]
[334955121,1723671065412,-151.0,0.00015342,2]
[334955122,1723671065421,-1072.180846,0.00015342,2]
[334955123,1723671065430,-1072.180846,0.00015342,2]
[334955124,1723671065440,-279.061505,0.00015342,2]
[334955125,1723671065449,-301.796473,0.00015342,2]
[334955126,1723671065458,-499.626765,0.00015342,2]
[334955127,1723671065468,-301.796473,0.00015342,2]
[334955128,1723671065477,-499.626765,0.00015342,2]
[334955129,1723671065486,-500.0,0.00015342,2]
[334955130,1723671065495,-500.0,0.00015342,2]
[334955131,1723671065505,-500.0,0.00015342,2]
[334955132,1723671065514,-182.328166,0.00015342,2]
[334955133,1723671065523,-182.328166,0.00015342,2]
[334955134,1723671065532,-212.059428,0.00015342,2]
[334955135,1723671065542,-319.181767,0.00015342,2]
[334955136,1723671065551,-319.181767,0.00015342,2]
[334955137,1723671065560,-199.933526,0.00015342,2]
[334955138,1723671065653,-199.933526,0.00015342,2]
[334955139,1723671065663,-500.0,0.00015342,2]
[334955140,1723671065672,-828.6,0.00015342,2]
[334955141,1723671065682,-207.775921,0.00015342,2]
[334955142,1723671065691,-207.775921,0.00015342,2]
[334955143,1723671065700,-500.0,0.00015342,2]
[334955144,1723671065709,-151.0,0.00015342,2]
[334955145,1723671065719,-949.98397,0.00015342,2]
[334955146,1723671065728,-949.98397,0.00015342,2]
[334955147,1723671065737,-500.0,0.00015342,2]
[334955148,1723671065746,-1704.69613,0.00015342,2]
[334955149,1723671065756,-1704.69613,0.00015342,2]
[334955150,1723671065765,-231.237354,0.00015342,2]
[334955151,1723671065774,-578.01,0.00015342,2]
[334955152,1723671065783,-275.793089,0.00015342,2]
[334955153,1723671065792,-1091.246547,0.00015342,2]
[334955154,1723671065801,-275.793089,0.00015342,2]
[334955155,1723671065810,-1091.246547,0.00015342,2]
[334955156,1723671065820,-427.976466,0.00015342,2]